[Event "24th Hoogeveen Open 2021"]
[Site "Hoogeveen"]
[Date "2021.10.18"]
[Round "4.6"]
[White "Labruyere, Roger"]
[Black "Binnendijk, Ferdinand"]
[Result "0-1"]
[ECO "B70"]
[WhiteElo "2009"]
[BlackElo "2142"]
[Annotator "RC"]
[PlyCount "137"]
[EventDate "2021.10.15"]
[EventType "swiss"]
[EventCountry "NED"]
[SourceTitle "playchess.com"]
[Source "ChessBase"]
[SourceQuality "1"]
[TimeControl "40/5400+30:1800+30"]

1. e4 {[%emt 0:00:01]} d6 {[%emt 0:00:28]} 2. d4 {[%emt 0:00:05]} Nf6 {[%emt 0:00:02]} 3. Nc3 {[%emt 0:00:04]} Nbd7 {[%emt 0:00:03]} 4. g3 {[%emt 0:00:05]} c5 {[%emt 0:00:03]} 5. Nge2 {[%emt 0:00:05]} cxd4 {[%emt 0:00:04]} 6. Nxd4 {[%emt 0:00:05]} g6 {[%emt 0:00:35]} 7. Bg2 {[%emt 0:00:05]} Bg7 {[%emt 0:00:06]} 8. O-O {[%emt 0:00:09]} O-O {[%emt 0:00:03]} 9. Be3 {[%emt 0:00:47]} a6 {[%emt 0:04:07]} 10. a4 {[%emt 0:02:30]} Ne5 {[%emt 0:01:54]} 11. Qe2 {[%emt 0:09:47]} Qc7 {[%emt 0:07:20]} 12. Nb3 {[%emt 0:01:25]} Be6 {[%emt 0:05:18]} 13. Bd4 {[%emt 0:04:32]} Bc4 {[%emt 0:04:45]} 14. Qd2 {[%emt 0:00:33]} Bxf1 {[%emt 0:00:48]} 15. Rxf1 {[%emt 0:00:06]} Nc4 {[%emt 0:05:37]} 16. Qc1 {[%emt 0:02:53]} Rac8 {[%emt 0:03:22]} 17. Bxf6 {[%emt 0:03:13]} Bxf6 {[%emt 0:00:30]} 18. Nd5 {[%emt 0:00:19]} Qd8 {[%emt 0:05:48]} 19. Nxf6+ {[%emt 0:00:09]} exf6 {[%emt 0:00:02]} 20. Nd2 {[%emt 0:02:06]} Qa5 {[%emt 0:03:45]} 21. Nxc4 {[%emt 0:00:07]} Rxc4 {[%emt 0:00:04]} 22. b3 {[%emt 0:00:10]} Rc3 {[%emt 0:00:45]} 23. Rd1 {[%emt 0:04:57]} Qc7 {[%emt 0:04:34]} 24. Qf4 {[%emt 0:01:50]} Rxc2 {[%emt 0:01:33]} 25. h4 {[%emt 0:03:17]} Qc3 {[%emt 0:04:28]} 26. Qxd6 {[%emt 0:08:29]} Rc1 {[%emt 0:00:26]} 27. Rxc1 {[%emt 0:00:17]} Qxc1+ {[%emt 0:00:04]} 28. Kh2 {[%emt 0:00:11]} Qb2 {[%emt 0:03:52]} 29. Qb6 {[%emt 0:01:21]} a5 {[%emt 0:07:09]} 30. Bf3 {[%emt 0:13:05]} Qe5 {[%emt 0:06:03]} 31. Kg2 {[%emt 0:06:10]} h5 {[%emt 0:01:07]} 32. b4 {[%emt 0:08:58]} axb4 {[%emt 0:00:06]} 33. Qxb4 {[%emt 0:00:04]} Rb8 {[%emt 0:04:30]} 34. Bd1 {[%emt 0:02:59]} b6 {[%emt 0:08:01]} 35. Bb3 {[%emt 0:03:29]} Kg7 {[%emt 0:01:28]} 36. Qc4 {[%emt 0:02:28]} Rb7 {[%emt 0:00:18]} 37. Qe2 {[%emt 0:15:21]} Re7 {[%emt 0:02:33]} 38. Bc2 {[%emt 0:02:21]} Qc3 {[%emt 0:01:17]} 39. Qd3 {[%emt 0:01:00]} Rc7 {[%emt 0:01:08]} 40. Bb1 {[%emt 0:01:14]} Qxd3 {[%emt 0:04:18]} 41. Bxd3 {[%emt 0:30:11]} Rc3 {[%emt 0:30:34]} 42. Bb5 {[%emt 0:00:16]} Kf8 {[%emt 0:01:52]} 43. Kf1 {[%emt 0:01:32]} Ke7 {[%emt 0:00:10]} 44. Ke2 {[%emt 0:00:08]} g5 {[%emt 0:05:04]} 45. hxg5 {[%emt 0:00:00]} fxg5 {[%emt 0:00:00]} 46. Kf1 {[%emt 0:00:00]} Ke6 {[%emt 0:00:00]} 47. Kg2 {[%emt 0:00:00]} g4 {[%emt 0:00:00]} 48. Kf1 {[%emt 0:00:00]} Ke5 {[%emt 0:00:00]} 49. Be8 {[%emt 0:00:00]} Rc7 {[%emt 0:00:00]} 50. Kg1 {[%emt 0:00:00]} Kxe4 {[%emt 0:00:00]} 51. Kg2 {[%emt 0:00:00]} Re7 {[%emt 0:00:00]} 52. Bc6+ {[%emt 0:00:00]} Kd4 {[%emt 0:00:00]} 53. Bb5 {[%emt 0:00:00]} Re5 {[%emt 0:00:00]} 54. Bc6 {[%emt 0:00:00]} Kc5 {[%emt 0:00:00]} 55. Bb5 {[%emt 0:00:00]} Kb4 {[%emt 0:00:00]} 56. Bc6 {[%emt 0:00:00]} Ra5 {[%emt 0:00:00]} 57. Be8 {[%emt 0:00:00]} f5 {[%emt 0:00:00]} 58. Bxh5 {[%emt 0:00:00]} Rxa4 {[%emt 0:00:00]} 59. f3 {[%emt 0:00:00]} Kc3 {[%emt 0:00:00]} 60. fxg4 {[%emt 0:00:00]} fxg4 {[%emt 0:00:00]} 61. Kf2 {[%emt 0:00:00]} Kd2 {[%emt 0:00:00]} 62. Be8 {[%emt 0:00:00]} Rd4 {[%emt 0:00:00]} 63. Bb5 {[%emt 0:00:00]} Rd5 {[%emt 0:00:00]} 64. Bc6 {[%emt 0:00:00]} Rf5+ {[%emt 0:00:00]} 65. Kg2 {[%emt 0:00:00]} Ke3 {[%emt 0:00:00]} 66. Bd7 {[%emt 0:00:00]} Rf2+ {[%emt 0:00:00]} 67. Kg1 {[%emt 0:00:00]} Kf3 {[%emt 0:00:00]} 68. Bxg4+ {[%emt 0:00:00]} Kxg3 {[%emt 0:00:00]} 69. Bh5 {[%emt 0:00:00]} 0-1

[Event "24th Hoogeveen Open 2021"]
[Site "Hoogeveen"]
[Date "2021.10.21"]
[Round "7.1"]
[White "Arabi, Osama"]
[Black "Bezemer, Arno"]
[Result "1-0"]
[ECO "A65"]
[WhiteElo "1940"]
[BlackElo "2283"]
[Annotator "ChessBase"]
[PlyCount "91"]
[EventDate "2021.10.15"]
[EventType "swiss"]
[EventCountry "NED"]
[SourceTitle "playchess.com"]
[Source "ChessBase"]
[SourceQuality "1"]
[TimeControl "40/5400+30:1800+30"]

1. d4 {[%emt 0:00:03]} Nf6 {[%emt 0:00:06]} 2. c4 {[%emt 0:00:05]} c5 {[%emt 0:00:16]} 3. d5 {[%emt 0:00:06]} g6 {[%emt 0:00:06]} 4. Nc3 {[%emt 0:00:14]} Bg7 {[%emt 0:00:05]} 5. e4 {[%emt 0:00:20]} d6 {[%emt 0:00:09]} 6. Nge2 {[%emt 0:01:42]} O-O {[%emt 0:05:00]} 7. Ng3 {[%emt 0:01:24]} e6 {[%emt 0:05:01]} 8. Be2 {[%emt 0:01:24]} exd5 {[%emt 0:00:21]} 9. cxd5 {[%emt 0:00:23]} a6 {[%emt 0:01:42]} 10. a4 {[%emt 0:00:13]} Nbd7 {[%emt 0:00:15]} 11. O-O {[%emt 0:01:41]} Rb8 {[%emt 0:02:23]} 12. Be3 {[%emt 0:06:04]} Re8 {[%emt 0:10:15]} 13. f3 {[%emt 0:03:28]} h5 {[%emt 0:05:07]} 14. Qd2 {[%emt 0:01:17]} h4 {[%emt 0:00:21]} 15. Nh1 {[%emt 0:00:12]} Nh7 {[%emt 0:00:48]} 16. Nf2 {[%emt 0:01:37]} Ndf8 {[%emt 0:01:56]} 17. Rab1 {[%emt 0:14:10]} Qa5 {[%emt 0:08:20]} 18. Rfc1 {[%emt 0:02:56]} Nd7 {[%emt 0:08:29]} 19. b4 {[%emt 0:09:51]} cxb4 {[%emt 0:00:37]} 20. Na2 {[%emt 0:02:04]} Nc5 {[%emt 0:01:20]} 21. Qxb4 {[%emt 0:02:41]} Qd8 {[%emt 0:06:36]} 22. a5 {[%emt 0:03:37]} Bf8 {[%emt 0:12:35]} 23. Nd3 {[%emt 0:10:54]} Nd7 {[%emt 0:00:24]} 24. Nc3 {[%emt 0:00:45]} Nhf6 {[%emt 0:02:20]} 25. Bg5 {[%emt 0:08:48]} Nxd5 {[%emt 0:02:59]} 26. Bxd8 {[%emt 0:02:17]} Nxb4 {[%emt 0:00:09]} 27. Bxh4 {[%emt 0:01:47]} Nxd3 {[%emt 0:00:11]} 28. Bxd3 {[%emt 0:00:08]} Nc5 {[%emt 0:11:33]} 29. Bc4 {[%emt 0:03:05]} Be6 {[%emt 0:01:30]} 30. Nd5 {[%emt 0:00:25]} Bxd5 {[%emt 0:02:16]} 31. Bxd5 {[%emt 0:00:17]} Bh6 {[%emt 0:06:42]} 32. Rd1 {[%emt 0:01:26]} Rec8 {[%emt 0:02:00]} 33. Bg3 {[%emt 0:05:21]} Rd8 {[%emt 0:00:41]} 34. Rb6 {[%emt 0:03:06]} Bf8 {[%emt 0:01:19]} 35. e5 {[%emt 0:02:11]} dxe5 {[%emt 0:01:22]} 36. Bxe5 {[%emt 0:00:54]} Rbc8 {[%emt 0:00:20]} 37. Rxg6+ {[%emt 0:01:32]} Kh7 {[%emt 0:00:02]} 38. Rf6 {[%emt 0:01:13]} Rd7 {[%emt 0:00:13]} 39. Rd4 {[%emt 0:00:20]} Bg7 {[%emt 0:01:02]} 40. Rh4+ {[%emt 0:00:39]} Kg8 {[%emt 0:00:14]} 41. Rg6 {[%emt 0:30:06]} Rxd5 {[%emt 0:30:28]} 42. Rxg7+ {[%emt 0:00:32]} Kf8 {[%emt 0:00:01]} 43. Rh8+ {[%emt 0:00:30]} Ke7 {[%emt 0:00:02]} 44. Rhg8 {[%emt 0:01:16]} Rcd8 45. Rxd8 {[%emt 0:00:31]} Rxe5 {[%emt 0:00:32]} 46. Rc8 {[%emt 0:01:34]} 1-0

[Event "24th Hoogeveen Open 2021"]
[Site "Hoogeveen"]
[Date "2021.10.21"]
[Round "7.2"]
[White "Roobol, Martin"]
[Black "Gutkind, Kedem"]
[Result "1/2-1/2"]
[ECO "B12"]
[WhiteElo "2296"]
[BlackElo "2112"]
[Annotator "ChessBase"]
[PlyCount "80"]
[EventDate "2021.10.15"]
[EventType "swiss"]
[EventCountry "NED"]
[SourceTitle "playchess.com"]
[Source "ChessBase"]
[SourceQuality "1"]
[TimeControl "40/5400+30:1800+30"]

1. e4 {[%emt 0:00:03]} c6 {[%emt 0:00:04]} 2. d4 {[%emt 0:03:30]} d5 {[%emt 0:00:17]} 3. e5 {[%emt 0:00:11]} Bf5 {[%emt 0:00:04]} 4. h4 {[%emt 0:01:04]} h6 {[%emt 0:00:05]} 5. Ne2 {[%emt 0:02:28]} e6 {[%emt 0:08:05]} 6. Ng3 {[%emt 0:04:26]} Bh7 {[%emt 0:00:06]} 7. Bd3 {[%emt 0:00:04]} Bxd3 {[%emt 0:00:03]} 8. Qxd3 {[%emt 0:00:04]} c5 {[%emt 0:00:06]} 9. c3 {[%emt 0:02:17]} Nc6 {[%emt 0:03:33]} 10. a3 {[%emt 0:07:18]} Qb6 {[%emt 0:02:10]} 11. Ne2 {[%emt 0:06:32]} Rc8 {[%emt 0:02:20]} 12. Nd2 {[%emt 0:09:54]} cxd4 {[%emt 0:15:15]} 13. cxd4 {[%emt 0:00:08]} h5 {[%emt 0:03:52]} 14. O-O {[%emt 0:06:08]} Nh6 {[%emt 0:03:33]} 15. b4 {[%emt 0:17:14]} Nf5 {[%emt 0:03:01]} 16. Nf3 {[%emt 0:00:09]} Be7 {[%emt 0:06:50]} 17. g3 {[%emt 0:06:07]} O-O {[%emt 0:04:41]} 18. Bg5 {[%emt 0:03:24]} Rfe8 {[%emt 0:00:04]} 19. Rfd1 {[%emt 0:03:59]} Bf8 {[%emt 0:04:46]} 20. Nh2 {[%emt 0:03:13]} Rc7 {[%emt 0:04:20]} 21. g4 {[%emt 0:01:46]} hxg4 {[%emt 0:00:23]} 22. Nxg4 {[%emt 0:00:05]} Rec8 {[%emt 0:06:13]} 23. h5 {[%emt 0:06:17]} Nce7 {[%emt 0:08:04]} 24. Ra2 {[%emt 0:02:40]} a6 {[%emt 0:04:49]} 25. Rad2 {[%emt 0:03:26]} Qb5 {[%emt 0:02:48]} 26. Qh3 {[%emt 0:00:09]} Kh7 {[%emt 0:06:50]} 27. h6 {[%emt 0:05:31]} g6 {[%emt 0:03:23]} 28. Nf6+ {[%emt 0:01:14]} Kh8 {[%emt 0:00:04]} 29. h7 {[%emt 0:00:09]} Bg7 {[%emt 0:00:30]} 30. Ng4 {[%emt 0:00:16]} Qa4 {[%emt 0:02:12]} 31. Bf6 {[%emt 0:00:16]} Rc2 {[%emt 0:04:10]} 32. Ng3 {[%emt 0:02:57]} Rxd2 {[%emt 0:00:37]} 33. Rxd2 {[%emt 0:00:05]} Qxa3 {[%emt 0:00:17]} 34. Kh2 {[%emt 0:03:08]} Qf3 {[%emt 0:01:41]} 35. b5 {[%emt 0:00:50]} axb5 {[%emt 0:00:36]} 36. Rb2 {[%emt 0:00:10]} Qf4 {[%emt 0:01:11]} 37. Rxb5 {[%emt 0:00:49]} Rc7 {[%emt 0:01:11]} 38. Ra5 {[%emt 0:00:06]} Rc8 {[%emt 0:00:07]} 39. Rb5 {[%emt 0:00:20]} Rc7 {[%emt 0:00:05]} 40. Ra5 {[%emt 0:00:16]} Rc8 {[%emt 0:00:25]} 1/2-1/2

[Event "24th Hoogeveen Open 2021"]
[Site "Hoogeveen"]
[Date "2021.10.21"]
[Round "7.3"]
[White "Binnendijk, Ferdinand"]
[Black "Meurs, Tom"]
[Result "0-1"]
[ECO "D31"]
[WhiteElo "2142"]
[BlackElo "2217"]
[Annotator "ChessBase"]
[PlyCount "126"]
[EventDate "2021.10.15"]
[EventType "swiss"]
[EventCountry "NED"]
[SourceTitle "playchess.com"]
[Source "ChessBase"]
[SourceQuality "1"]
[TimeControl "40/5400+30:1800+30"]

1. d4 {[%emt 0:00:02]} d5 {[%emt 0:00:07]} 2. c4 {[%emt 0:00:05]} e6 {[%emt 0:00:07]} 3. Nc3 {[%emt 0:00:05]} a6 {[%emt 0:00:04]} 4. Nf3 {[%emt 0:03:00]} dxc4 {[%emt 0:00:20]} 5. a4 {[%emt 0:01:40]} Nc6 {[%emt 0:00:12]} 6. e3 {[%emt 0:02:59]} Na5 {[%emt 0:00:12]} 7. Ne5 {[%emt 0:03:45]} c5 {[%emt 0:00:48]} 8. Nxc4 {[%emt 0:03:17]} Nf6 {[%emt 0:00:10]} 9. Be2 {[%emt 0:08:19]} cxd4 {[%emt 0:00:25]} 10. exd4 {[%emt 0:00:47]} Nxc4 {[%emt 0:00:20]} 11. Bxc4 {[%emt 0:00:03]} Bd6 {[%emt 0:00:07]} 12. Bg5 {[%emt 0:06:21]} h6 {[%emt 0:00:59]} 13. Bh4 {[%emt 0:00:17]} O-O {[%emt 0:00:12]} 14. Qf3 {[%emt 0:11:31]} Be7 {[%emt 0:08:37]} 15. Rd1 {[%emt 0:01:34]} Qc7 {[%emt 0:11:19]} 16. Ba2 {[%emt 0:03:03]} Bd7 {[%emt 0:06:30]} 17. O-O {[%emt 0:06:32]} Bc6 {[%emt 0:00:19]} 18. d5 {[%emt 0:06:44]} exd5 {[%emt 0:08:16]} 19. Rd4 {[%emt 0:03:52]} Rad8 {[%emt 0:03:41]} 20. Qd3 {[%emt 0:07:44]} Rfe8 {[%emt 0:17:29]} 21. Bb1 {[%emt 0:01:51]} g6 {[%emt 0:02:10]} 22. Ba2 {[%emt 0:02:54]} Kg7 {[%emt 0:02:33]} 23. Rd1 {[%emt 0:04:42]} Qe5 {[%emt 0:13:31]} 24. Bg3 {[%emt 0:03:08]} Qe6 {[%emt 0:02:04]} 25. b4 {[%emt 0:01:55]} b6 {[%emt 0:06:02]} 26. h3 {[%emt 0:02:22]} Bb7 {[%emt 0:02:07]} 27. Qd2 {[%emt 0:05:53]} Bd6 {[%emt 0:04:18]} 28. Nxd5 {[%emt 0:02:43]} Bxg3 {[%emt 0:00:41]} 29. Nxf6 {[%emt 0:01:02]} Qxf6 {[%emt 0:00:30]} 30. fxg3 {[%emt 0:01:19]} Rxd4 {[%emt 0:07:59]} 31. Qxd4 {[%emt 0:00:04]} Re1+ {[%emt 0:00:04]} 32. Kh2 {[%emt 0:00:22]} Qxd4 {[%emt 0:01:45]} 33. Rxd4 {[%emt 0:00:05]} Re2 {[%emt 0:00:14]} 34. Bd5 {[%emt 0:00:04]} Bxd5 {[%emt 0:00:21]} 35. Rxd5 {[%emt 0:00:03]} Re4 {[%emt 0:00:04]} 36. a5 {[%emt 0:00:13]} Rxb4 {[%emt 0:00:17]} 37. axb6 {[%emt 0:00:05]} Rxb6 {[%emt 0:00:04]} 38. Rd7 {[%emt 0:00:09]} Rb5 {[%emt 0:02:29]} 39. Ra7 {[%emt 0:00:27]} a5 {[%emt 0:00:11]} 40. g4 {[%emt 0:00:12]} Kf6 {[%emt 0:01:10]} 41. Kg3 {[%emt 0:31:25]} Ke6 {[%emt 0:30:41]} 42. Kh2 {[%emt 0:07:43]} f6 {[%emt 0:00:00]} 43. Kg3 {[%emt 0:00:00]} Kd5 {[%emt 0:00:00]} 44. Ra6 {[%emt 0:00:00]} Kc5 {[%emt 0:00:00]} 45. Kh4 {[%emt 0:00:00]} Kb4 {[%emt 0:00:00]} 46. Rxf6 {[%emt 0:00:00]} a4 {[%emt 0:00:00]} 47. Rxg6 {[%emt 0:00:00]} a3 {[%emt 0:00:00]} 48. Ra6 {[%emt 0:00:00]} Ra5 {[%emt 0:00:00]} 49. Rf6 {[%emt 0:00:00]} a2 {[%emt 0:00:00]} 50. Rf1 {[%emt 0:00:00]} Kc3 {[%emt 0:10:54]} 51. Ra1 {[%emt 0:00:00]} Kb2 {[%emt 0:00:00]} 52. Rxa2+ {[%emt 0:00:00]} Kxa2 {[%emt 0:00:00]} 53. Kg3 {[%emt 0:00:00]} Kb3 {[%emt 0:00:00]} 54. Kf4 {[%emt 0:00:00]} Kc4 {[%emt 0:00:00]} 55. h4 {[%emt 0:00:00]} Kd4 {[%emt 0:00:00]} 56. g5 {[%emt 0:00:00]} hxg5+ {[%emt 0:00:00]} 57. hxg5 {[%emt 0:00:00]} Kd5 {[%emt 0:00:00]} 58. Kf5 {[%emt 0:00:00]} Kd6+ {[%emt 0:00:00]} 59. Kf6 {[%emt 0:00:00]} Kd7 {[%emt 0:00:00]} 60. g6 {[%emt 0:00:00]} Ke8 {[%emt 0:00:00]} 61. Kg7 {[%emt 0:00:00]} Rg5 {[%emt 0:00:00]} 62. Kf6 {[%emt 0:00:00]} Rxg2 {[%emt 0:00:00]} 63. g7 {[%emt 0:00:00]} Rg1 {[%emt 0:00:00]} 0-1

[Event "24th Hoogeveen Open 2021"]
[Site "Hoogeveen"]
[Date "2021.10.21"]
[Round "7.4"]
[White "Van der Hagen, Loek"]
[Black "Hovenga, Alje"]
[Result "0-1"]
[ECO "B00"]
[WhiteElo "2010"]
[BlackElo "2212"]
[Annotator "ChessBase"]
[PlyCount "66"]
[EventDate "2021.10.15"]
[EventType "swiss"]
[EventCountry "NED"]
[SourceTitle "playchess.com"]
[Source "ChessBase"]
[SourceQuality "1"]
[TimeControl "40/5400+30:1800+30"]

1. e4 {[%emt 0:00:30]} Nc6 {[%emt 0:00:10]} 2. Nf3 {[%emt 0:00:00]} d6 {[%emt 0:00:12]} 3. Bc4 {[%emt 0:02:40]} Nf6 {[%emt 0:04:41]} 4. d3 {[%emt 0:03:11]} g6 {[%emt 0:04:42]} 5. a3 {[%emt 0:04:24]} Bg7 {[%emt 0:02:29]} 6. Nc3 {[%emt 0:00:09]} O-O {[%emt 0:05:17]} 7. Bg5 {[%emt 0:02:28]} Bg4 {[%emt 0:05:40]} 8. h3 {[%emt 0:07:08]} Bxf3 {[%emt 0:00:51]} 9. gxf3 {[%emt 0:00:06]} Nd4 {[%emt 0:08:48]} 10. Be3 {[%emt 0:08:23]} Nh5 {[%emt 0:06:41]} 11. Nd5 {[%emt 0:13:33]} e6 {[%emt 0:05:35]} 12. Nc3 {[%emt 0:14:39]} c6 {[%emt 0:02:07]} 13. Nb1 {[%emt 0:04:00]} d5 {[%emt 0:03:02]} 14. c3 {[%emt 0:12:08]} dxc4 {[%emt 0:02:55]} 15. dxc4 {[%emt 0:01:31]} e5 {[%emt 0:04:55]} 16. cxd4 {[%emt 0:00:48]} exd4 {[%emt 0:00:10]} 17. Bc1 {[%emt 0:00:46]} f5 {[%emt 0:01:49]} 18. Qd3 {[%emt 0:01:28]} Qh4 {[%emt 0:02:43]} 19. Rh2 {[%emt 0:02:44]} Rae8 {[%emt 0:03:10]} 20. Nd2 {[%emt 0:00:55]} Be5 {[%emt 0:09:26]} 21. Rh1 {[%emt 0:00:38]} c5 {[%emt 0:01:42]} 22. a4 {[%emt 0:01:53]} Nf4 {[%emt 0:03:43]} 23. Qf1 {[%emt 0:01:01]} Ne6 {[%emt 0:03:14]} 24. Ra3 {[%emt 0:01:20]} Bf4 {[%emt 0:02:22]} 25. exf5 {[%emt 0:01:37]} Rxf5 {[%emt 0:01:32]} 26. Kd1 {[%emt 0:00:25]} Ng5 {[%emt 0:02:36]} 27. Qg2 {[%emt 0:01:06]} Bxd2 {[%emt 0:01:49]} 28. Kxd2 {[%emt 0:01:58]} d3 {[%emt 0:01:43]} 29. Rxd3 {[%emt 0:01:23]} Qxc4 {[%emt 0:00:11]} 30. b3 {[%emt 0:01:39]} Nxf3+ {[%emt 0:02:02]} 31. Qxf3 {[%emt 0:01:25]} Qb4+ {[%emt 0:00:06]} 32. Kd1 {[%emt 0:00:52]} Rxf3 {[%emt 0:00:08]} 33. Rxf3 {[%emt 0:00:08]} Qe4 {[%emt 0:00:45]} 0-1

[Event "24th Hoogeveen Open 2021"]
[Site "Hoogeveen"]
[Date "2021.10.21"]
[Round "7.5"]
[White "Van den Berg, Bram"]
[Black "Labruyere, Roger"]
[Result "1/2-1/2"]
[ECO "B12"]
[WhiteElo "2209"]
[BlackElo "2009"]
[Annotator "ChessBase"]
[PlyCount "123"]
[EventDate "2021.10.15"]
[EventType "swiss"]
[EventCountry "NED"]
[SourceTitle "playchess.com"]
[Source "ChessBase"]
[SourceQuality "1"]
[TimeControl "40/5400+30:1800+30"]

1. e4 {[%emt 0:00:11]} c6 {[%emt 0:00:04]} 2. d4 {[%emt 0:00:43]} d5 {[%emt 0:00:05]} 3. e5 {[%emt 0:00:03]} Bf5 {[%emt 0:00:07]} 4. h4 {[%emt 0:00:06]} h5 {[%emt 0:00:04]} 5. Bd3 {[%emt 0:00:05]} Bxd3 {[%emt 0:00:12]} 6. Qxd3 {[%emt 0:00:04]} e6 {[%emt 0:00:10]} 7. Be3 {[%emt 0:01:11]} Qa5+ {[%emt 0:00:49]} 8. c3 {[%emt 0:00:23]} Qa6 {[%emt 0:00:05]} 9. Qc2 {[%emt 0:00:43]} Nh6 {[%emt 0:00:34]} 10. f3 {[%emt 0:01:55]} Be7 {[%emt 0:02:11]} 11. Ne2 {[%emt 0:02:34]} Nf5 {[%emt 0:00:46]} 12. Bf2 {[%emt 0:00:06]} Nd7 {[%emt 0:01:15]} 13. b4 {[%emt 0:04:59]} b6 {[%emt 0:03:31]} 14. a4 {[%emt 0:01:12]} c5 {[%emt 0:02:22]} 15. b5 {[%emt 0:11:28]} Qc8 {[%emt 0:00:25]} 16. Qd3 {[%emt 0:02:52]} a6 {[%emt 0:04:26]} 17. Na3 {[%emt 0:04:31]} c4 {[%emt 0:01:16]} 18. Qb1 {[%emt 0:00:28]} Bxa3 {[%emt 0:02:36]} 19. Rxa3 {[%emt 0:00:07]} axb5 {[%emt 0:00:19]} 20. Qxb5 {[%emt 0:00:26]} Ra5 {[%emt 0:01:09]} 21. Qb4 {[%emt 0:14:48]} Qc7 {[%emt 0:11:41]} 22. Nf4 {[%emt 0:12:19]} Qa7 {[%emt 0:22:33]} 23. Ke2 {[%emt 0:04:23]} Qc7 {[%emt 0:07:48]} 24. Kd2 {[%emt 0:04:51]} Qd8 {[%emt 0:03:12]} 25. g4 {[%emt 0:09:30]} hxg4 {[%emt 0:01:04]} 26. fxg4 {[%emt 0:00:59]} Nxh4 {[%emt 0:04:10]} 27. Raa1 {[%emt 0:06:11]} Qg5 {[%emt 0:06:10]} 28. Be3 {[%emt 0:00:15]} Qxg4 {[%emt 0:00:38]} 29. Rag1 {[%emt 0:00:11]} Qf3 {[%emt 0:06:02]} 30. Rh3 {[%emt 0:07:21]} Qe4 {[%emt 0:00:10]} 31. Rxg7 {[%emt 0:00:05]} Nf3+ {[%emt 0:00:48]} 32. Ke2 {[%emt 0:00:49]} Rf8 {[%emt 0:10:48]} 33. Qb2 {[%emt 0:07:39]} Nxd4+ {[%emt 0:03:38]} 34. cxd4 {[%emt 0:00:06]} Rxa4 {[%emt 0:00:03]} 35. Rg1 {[%emt 0:01:03]} b5 {[%emt 0:02:17]} 36. Ra1 {[%emt 0:01:33]} Rxa1 {[%emt 0:01:01]} 37. Qxa1 {[%emt 0:00:04]} Qc2+ {[%emt 0:00:08]} 38. Ke1 {[%emt 0:00:16]} b4 {[%emt 0:01:56]} 39. Qa8+ {[%emt 0:00:28]} Ke7 {[%emt 0:00:01]} 40. Nxd5+ {[%emt 0:00:01]} exd5 {[%emt 0:00:13]} 41. Bg5+ {[%emt 0:30:38]} Ke6 {[%emt 0:07:26]} 42. Qc6+ {[%emt 0:00:00]} Kf5 {[%emt 0:00:07]} 43. Qxd7+ {[%emt 0:00:00]} Kg6 {[%emt 0:00:06]} 44. Qg4 {[%emt 0:00:00]} Qe4+ {[%emt 0:00:28]} 45. Qxe4+ {[%emt 0:00:00]} dxe4 {[%emt 0:00:02]} 46. Be7 {[%emt 0:00:00]} Rb8 {[%emt 0:00:17]} 47. Kd1 {[%emt 0:00:00]} Rb7 {[%emt 0:02:49]} 48. Bc5 {[%emt 0:00:00]} Kf5 {[%emt 0:01:21]} 49. Rh5+ {[%emt 0:00:00]} Kg6 {[%emt 0:01:55]} 50. Rh2 {[%emt 0:00:00]} b3 {[%emt 0:03:39]} 51. Kc1 {[%emt 0:00:00]} c3 {[%emt 0:00:39]} 52. Kb1 {[%emt 0:00:00]} Kf5 {[%emt 0:02:43]} 53. Rh3 {[%emt 0:00:33]} c2+ {[%emt 0:00:24]} 54. Kb2 {[%emt 0:00:08]} Ke6 {[%emt 0:06:58]} 55. Rh1 {[%emt 0:03:45]} Kd5 {[%emt 0:00:52]} 56. Re1 {[%emt 0:01:40]} Rb8 {[%emt 0:02:04]} 57. Kc3 {[%emt 0:00:30]} e3 {[%emt 0:01:29]} 58. Kb2 {[%emt 0:03:57]} Ke4 {[%emt 0:02:25]} 59. d5 {[%emt 0:00:06]} Kxd5 {[%emt 0:01:09]} 60. Bxe3 {[%emt 0:00:06]} Ke6 {[%emt 0:01:17]} 61. Bd4 {[%emt 0:00:24]} Rd8 {[%emt 0:01:46]} 62. Re4 {[%emt 0:00:44]} 1/2-1/2

[Event "24th Hoogeveen Open 2021"]
[Site "Hoogeveen"]
[Date "2021.10.21"]
[Round "7.6"]
[White "Tabak, Stefan"]
[Black "Klaren, Duncan"]
[Result "1-0"]
[ECO "B20"]
[WhiteElo "2168"]
[BlackElo "1845"]
[Annotator "ChessBase"]
[PlyCount "109"]
[EventDate "2021.10.15"]
[EventType "swiss"]
[EventCountry "NED"]
[SourceTitle "playchess.com"]
[Source "ChessBase"]
[SourceQuality "1"]
[TimeControl "40/5400+30:1800+30"]

1. e4 {[%emt 0:00:03]} c5 {[%emt 0:00:06]} 2. b4 {[%emt 0:00:06]} cxb4 {[%emt 0:00:14]} 3. d4 {[%emt 0:00:07]} d5 {[%emt 0:02:47]} 4. exd5 {[%emt 0:00:14]} Nf6 {[%emt 0:01:06]} 5. a3 {[%emt 0:00:38]} Nxd5 {[%emt 0:01:54]} 6. axb4 {[%emt 0:00:57]} e6 {[%emt 0:01:33]} 7. b5 {[%emt 0:06:45]} Bb4+ {[%emt 0:12:22]} 8. Bd2 {[%emt 0:00:23]} Qe7 {[%emt 0:00:48]} 9. c3 {[%emt 0:01:07]} Bd6 {[%emt 0:00:08]} 10. c4 {[%emt 0:04:45]} Nb4 {[%emt 0:04:08]} 11. c5 {[%emt 0:01:00]} Bxc5 {[%emt 0:00:11]} 12. dxc5 {[%emt 0:00:28]} Qxc5 {[%emt 0:00:12]} 13. Bxb4 {[%emt 0:09:31]} Qxb4+ {[%emt 0:07:20]} 14. Nd2 {[%emt 0:01:28]} O-O {[%emt 0:02:11]} 15. Ngf3 {[%emt 0:00:23]} e5 {[%emt 0:05:32]} 16. Ra4 {[%emt 0:04:02]} Qe7 {[%emt 0:09:53]} 17. Be2 {[%emt 0:05:22]} Bf5 {[%emt 0:02:21]} 18. O-O {[%emt 0:01:17]} Nd7 {[%emt 0:01:26]} 19. Qa1 {[%emt 0:01:19]} Qf6 {[%emt 0:12:24]} 20. Ne4 {[%emt 0:02:25]} Qe7 {[%emt 0:02:56]} 21. Ng3 {[%emt 0:05:22]} Bg6 {[%emt 0:00:42]} 22. Rxa7 {[%emt 0:01:24]} Rab8 {[%emt 0:02:09]} 23. Qa3 {[%emt 0:02:27]} Qf6 {[%emt 0:03:27]} 24. Rd1 {[%emt 0:02:30]} Rfd8 {[%emt 0:02:34]} 25. Qd6 {[%emt 0:02:35]} Qxd6 {[%emt 0:05:30]} 26. Rxd6 {[%emt 0:00:02]} f6 {[%emt 0:00:21]} 27. h4 {[%emt 0:01:54]} Nc5 {[%emt 0:01:27]} 28. Rxd8+ {[%emt 0:00:26]} Rxd8 {[%emt 0:00:06]} 29. Ra2 {[%emt 0:08:01]} e4 {[%emt 0:02:30]} 30. Rd2 {[%emt 0:01:10]} Nd3 {[%emt 0:03:47]} 31. Ne1 {[%emt 0:04:37]} Rc8 {[%emt 0:02:33]} 32. Nxd3 {[%emt 0:02:26]} exd3 {[%emt 0:00:16]} 33. Bxd3 {[%emt 0:00:30]} Rc5 {[%emt 0:02:59]} 34. Be2 {[%emt 0:01:48]} Be8 {[%emt 0:01:37]} 35. Rd8 {[%emt 0:00:53]} Kf7 {[%emt 0:00:29]} 36. Rb8 {[%emt 0:00:28]} Rc7 {[%emt 0:00:40]} 37. Bf3 {[%emt 0:03:08]} Bxb5 {[%emt 0:00:25]} 38. Rxb7 {[%emt 0:00:06]} Rxb7 {[%emt 0:00:03]} 39. Bxb7 {[%emt 0:00:07]} Bd7 {[%emt 0:00:39]} 40. f3 {[%emt 0:00:13]} g6 {[%emt 0:00:44]} 41. Kf2 {[%emt 0:30:04]} Kg7 {[%emt 0:30:43]} 42. Ne4 {[%emt 0:00:26]} Kf7 {[%emt 0:00:55]} 43. Ke3 {[%emt 0:00:05]} Ke7 {[%emt 0:00:16]} 44. Kd4 {[%emt 0:00:05]} Be6 {[%emt 0:00:40]} 45. Bd5 {[%emt 0:00:40]} Bd7 {[%emt 0:00:09]} 46. g3 {[%emt 0:00:21]} Bc8 {[%emt 0:02:50]} 47. Kc5 {[%emt 0:00:42]} Bd7 {[%emt 0:00:48]} 48. Nc3 {[%emt 0:01:43]} Be8 {[%emt 0:00:59]} 49. Bb3 {[%emt 0:01:30]} Bf7 {[%emt 0:02:41]} 50. Bxf7 {[%emt 0:00:06]} Kxf7 {[%emt 0:00:03]} 51. Kd6 {[%emt 0:00:07]} h6 {[%emt 0:00:10]} 52. Nd5 {[%emt 0:00:08]} h5 {[%emt 0:00:52]} 53. Kd7 {[%emt 0:00:11]} g5 {[%emt 0:00:21]} 54. Kd6 {[%emt 0:00:08]} g4 {[%emt 0:01:37]} 55. f4 {[%emt 0:00:09]} 1-0